Workbook

Sheet Orçamento Sintético
B2: PLANILHA ORÇAMENTÁRIA
B3: Serviço: Contratação de Ensaios e Serviços Geotécnicos para retificação do projeto executivo do Sistema de Adutoras do Seridó Potiguar, no estado do Rio Grande do Norte (Trechos 1N, 2N, 4N e 5N) | J3: BDI | L3: Com Desoneração
G4: Base de Preço: | J4: =BDI!E14 -> 0.2093 | L4: =BDI!#REF! -> 
H5: SEINFRA - 028 SIURB - 07/2023 SIURB INFRA - 07/2023 CPOS/CDHU - 08/2023 COMPESA - 01/2023
B10: Item | C10: Código | E10: DESCRIÇÃO | F10: UND | G10: QUANT | H10: PREÇO UNITÁRIO | K10: PREÇO TOTAL | L10: TOTAL COM DESONERAÇÃO
H11: Custo Direto | I11: BDI | J11: Custo com BDI
B12: 1.0 | C12: Sondagem Mista | K12: =SUM(K13:K17) -> 243877.1729 | L12: =SUM(L13:L17) -> 0
B13: 1.1 | C13: 01.21.090 | D13: CPOS | E13: Sondagem Mista: (Des)Mobilização por trecho | F13: un | G13: 4 | H13: ='CPU''s'!J34 -> 6440.38 | I13: =$J$4 -> 0.2093 | J13: =(I13+1)*H13 -> 7788.351534 | K13: =J13*G13 -> 31153.40614
B14: 1.2 | C14: C0333 | D14: SEINFRA | E14: Sondagem Mista: em rochas | F14: m | G14: =39*3 -> 117 | H14: ='CPU''s'!J4 -> 1251.98 | I14: =$J$4 -> 0.2093 | J14: =(I14+1)*H14 -> 1514.019414 | K14: =J14*G14 -> 177140.2714
B15: 1.3 | C15: C0143 | D15: SEINFRA | E15: Sondagem Mista: em solo (SPT) | F15: m | G15: =39*2 -> 78 | H15: ='CPU''s'!J11 -> 299.97 | I15: =$J$4 -> 0.2093 | J15: 362.753721 | K15: 28294.79024
B16: 1.4 | C16: 200203 | D16: SIURB | E16: Sondagem Mista: Desloc/Instalação 0-200 m | F16: un | G16: 27 | H16: ='CPU''s'!J18 -> 95.67 | I16: =$J$4 -> 0.2093 | J16: 115.693731 | K16: 3123.730737
B17: 1.5 | C17: 200205 | D17: SIURB | E17: Sondagem Mista: Desloc/Instalação > 200 m | F17: un | G17: =9+3 -> 12 | H17: ='CPU''s'!J26 -> 287.01 | I17: =$J$4 -> 0.2093 | J17: 347.081193 | K17: 4164.974316
B18: 2.0 | C18: Poço de Inspeção | K18: =SUM(K19:K19) -> 145841.58
B19: 2.1 | C19: GT3 | D19: CODE | E19: Poços de Inspeção com retroescavadeira | F19: m | G19: =134*2 -> 268 | H19: 450 | I19: =$J$4 -> 0.2093 | J19: =(I19+1)*H19 -> 544.185 | K19: =J19*G19 -> 145841.58
B20: 3.0 | C20: Sondagem a Percussão SPT | K20: =SUM(K21:K24) -> 112791.4836 | L20: =SUM(L21:L21) -> 0
B21: 3.1 | C21: 01.21.010 | D21: CPOS | E21: Sondagem Percussão: (Des)Mobilização por trecho | F21: un | G21: 4 | H21: ='CPU''s'!J41 -> 1249.33 | I21: =$J$4 -> 0.2093 | J21: =(I21+1)*H21 -> 1510.814769 | K21: =J21*G21 -> 6043.259076
B22: 3.2 | C22: 01.02.02U | D22: COMPESA | E22: Sondagem Percussão: com SPT - Terrestre | F22: m | G22: =142*2*2 -> 568 | H22: ='CPU''s'!J48 -> 122.06 | I22: =$J$4 -> 0.2093 | J22: 147.607158 | K22: 83840.86574
B23: 3.3 | C23: 200203 | D23: SIURB | E23: Sondagem Percussão: Desloc/Instalação 0-200 m | F23: un | G23: 114 | H23: ='CPU''s'!J18 -> 95.67 | I23: =$J$4 -> 0.2093 | J23: 115.693731 | K23: 13189.08533
B24: 3.4 | C24: 200205 | D24: SIURB | E24: Sondagem Percussão: Desloc/Instalação > 200m | F24: un | G24: 28 | H24: ='CPU''s'!J26 -> 287.01 | I24: =$J$4 -> 0.2093 | J24: 347.081193 | K24: 9718.273404
K26: =K20+K18+K12 -> 502510.2364

Sheet CPU's
A3: 1 | B3: Código | C3: Banco | D3: Descrição | E3: Tipo | G3: Und | H3: Quant. | I3: Valor Unit | J3: Total
A4: Composição | B4: C0333 | C4: SEINFRA | D4: SERVIÇOS DE SONDAGEM GEOTÉCNICA MISTA EM ROCHA | E4: SONDAGENS | G4: M | H4: 1 | I4: 1251.98 | J4: 1251.98
A5: Insumo | B5: I0454 | C5: SEINFRA | D5: SERVIÇOS DE SONDAGEM GEOTÉCNICA MISTA EM ROCHA | E5: Serviços | G5: M | H5: 1 | I5: 1251.98 | J5: 1251.98
E6: MO sem LS => | F6: 0 | G6: LS => | H6: 0 | I6: MO com LS => | J6: 0
E7: Valor do BDI => | F7: 0 | H7: Valor com BDI => | J7: 1251.98
G8: Quant. => | H8: 1 | I8: Preço Total => | J8: 1251.98
A10: 2 | B10: Código | C10: Banco | D10: Descrição | E10: Tipo | G10: Und | H10: Quant. | I10: Valor Unit | J10: Total
A11: Composição | B11: C0143 | C11: SEINFRA | D11: SERVIÇOS DE SONDAGEM GEOTÉCNICA MISTA EM SOLOS | E11: SONDAGENS | G11: M | H11: 1 | I11: 299.97 | J11: 299.97
A12: Insumo | B12: I0412 | C12: SEINFRA | D12: SERVIÇOS DE SONDAGEM GEOTÉCNICA MISTA EM SOLOS | E12: Serviços | G12: M | H12: 1 | I12: 299.97 | J12: 299.97
E13: MO sem LS => | F13: 0 | G13: LS => | H13: 0 | I13: MO com LS => | J13: 0
E14: Valor do BDI => | F14: 0 | H14: Valor com BDI => | J14: 299.97
G15: Quant. => | H15: 1 | I15: Preço Total => | J15: 299.97
A17: 3 | B17: Código | C17: Banco | D17: Descrição | E17: Tipo | G17: Und | H17: Quant. | I17: Valor Unit | J17: Total
A18: Composição | B18: 200203 | C18: SIURB | D18: DESLOCAMENTO DE EQUIPAMENTO ENTRE FUROS EM TERRENO PLANO, CONSIDERANDO A DISTÂNCIA ATÉ 100M, PARA SONDAGEM A PERCUSSÃO | E18: Edificações | G18: UN | H18: 1 | I18: 95.67 | J18: 95.67
A19: Insumo | B19: 1182 | C19: SIURB | D19: SONDADOR (SGSP) | E19: Mão de Obra | G19: H | H19: 1 | I19: 46.95 | J19: 46.95
A20: Insumo | B20: 1003 | C20: SIURB | D20: AJUDANTE GERAL (SGSP) | E20: Mão de Obra | G20: H | H20: 2 | I20: 24.36 | J20: 48.72
E21: MO sem LS => | F21: 95.67 | G21: LS => | H21: 0 | I21: MO com LS => | J21: 95.67
E22: Valor do BDI => | F22: 0 | H22: Valor com BDI => | J22: 95.67
G23: Quant. => | H23: 1 | I23: Preço Total => | J23: 95.67
A25: 4 | B25: Código | C25: Banco | D25: Descrição | E25: Tipo | G25: Und | H25: Quant. | I25: Valor Unit | J25: Total
A26: Composição | B26: 200205 | C26: SIURB | D26: DESLOCAMENTO DE EQUIPAMENTO ENTRE FUROS EM TERRENO PLANO, CONSIDERANDO A DISTÂNCIA ACIMA DE 200M, PARA SONDAGEM A PERCUSSÃO | E26: Edificações | G26: UN | H26: 1 | I26: 287.01 | J26: 287.01
A27: Insumo | B27: 1182 | C27: SIURB | D27: SONDADOR (SGSP) | E27: Mão de Obra | G27: H | H27: 3 | I27: 46.95 | J27: 140.85
A28: Insumo | B28: 1003 | C28: SIURB | D28: AJUDANTE GERAL (SGSP) | E28: Mão de Obra | G28: H | H28: 6 | I28: 24.36 | J28: 146.16
E29: MO sem LS => | F29: 287.01 | G29: LS => | H29: 0 | I29: MO com LS => | J29: 287.01
E30: Valor do BDI => | F30: 0 | H30: Valor com BDI => | J30: 287.01
G31: Quant. => | H31: 1 | I31: Preço Total => | J31: 287.01
A33: 5 | B33: Código | C33: Banco | D33: Descrição | E33: Tipo | G33: Und | H33: Quant. | I33: Valor Unit | J33: Total
A34: Composição | B34: 01.21.090 | C34: CPOS/CDHU | D34: Taxa de mobilização e desmobilização de equipamentos para execução de sondagem rotativa | E34: 1.21 | G34: TX | H34: 1 | I34: 6440.38 | J34: 6440.38
A35: Insumo | B35: A.07.000.020350 | C35: CPOS/CDHU | D35: Taxa de mobilização e desmobilização de equipamentos para execução de sondagem rotativa | E35: Material | G35: TX | H35: 1 | I35: 6440.38 | J35: 6440.38
E36: MO sem LS => | F36: 0 | G36: LS => | H36: 0 | I36: MO com LS => | J36: 0
E37: Valor do BDI => | F37: 0 | H37: Valor com BDI => | J37: 6440.38
G38: Quant. => | H38: 1 | I38: Preço Total => | J38: 6440.38
A40: 6 | B40: Código | C40: Banco | D40: Descrição | E40: Tipo | G40: Und | H40: Quant. | I40: Valor Unit | J40: Total
A41: Composição | B41: 01.21.010 | C41: CPOS/CDHU | D41: Taxa de mobilização e desmobilização de equipamentos para execução de sondagem | E41: 1.21 | G41: TX | H41: 1 | I41: 1249.33 | J41: 1249.33
A42: Insumo | B42: A.07.000.020476 | C42: CPOS/CDHU | D42: Taxa de mobilização e desmobilização de equipamentos para execução de sondagem | E42: Material | G42: TX | H42: 1 | I42: 1249.33 | J42: 1249.33
E43: MO sem LS => | F43: 0 | G43: LS => | H43: 0 | I43: MO com LS => | J43: 0
E44: Valor do BDI => | F44: 0 | H44: Valor com BDI => | J44: 1249.33
G45: Quant. => | H45: 1 | I45: Preço Total => | J45: 1249.33
A47: 7 | B47: Código | C47: Banco | D47: Descrição | E47: Tipo | G47: Und | H47: Quant. | I47: Valor Unit | J47: Total
A48: Composição | B48: 01.02.02U | C48: COMPESA | D48: SONDAGEM A PERCUSSÃO SPT, INCLUSIVE LAUDO (PROFUNDIDADE MÍNIMA DE 8,00 M, POR FURO). | G48: M | H48: 1 | I48: 122.06 | J48: 122.06
A49: Composição Auxiliar | B49: 100533 | C49: SINAPI | D49: TECNICO DE EDIFICACOES COM ENCARGOS COMPLEMENTARES | E49: SEDI - SERVIÇOS DIVERSOS | G49: H | H49: 0.375 | I49: 36.76 | J49: 13.78
A50: Composição Auxiliar | B50: 88316 | C50: SINAPI | D50: SERVENTE COM ENCARGOS COMPLEMENTARES | E50: SEDI - SERVIÇOS DIVERSOS | G50: H | H50: 0.533 | I50: 19.76 | J50: 10.53
A51: Composição Auxiliar | B51: 88322 | C51: SINAPI | D51: TÉCNICO DE SONDAGEM COM ENCARGOS COMPLEMENTARES | E51: SEDI - SERVIÇOS DIVERSOS | G51: H | H51: 1.066 | I51: 49.32 | J51: 52.57
A52: Composição Auxiliar | B52: 90773 | C52: SINAPI | D52: DESENHISTA COPISTA COM ENCARGOS COMPLEMENTARES | E52: SEDI - SERVIÇOS DIVERSOS | G52: H | H52: 0.133 | I52: 36.88 | J52: 4.9
A53: Insumo | B53: 990113U | C53: COMPESA | D53: VAN COM COMBUSTIVEL, MANUTENÇÃO E SEGURO | E53: Outros | G53: H | H53: 0.33 | I53: 53.74 | J53: 17.73
A54: Insumo | B54: 990214U | C54: COMPESA | D54: MATERIAIS E EQUIPAMENTOS PARA SONDAGEM | E54: Outros | G54: H | H54: 1 | I54: 22.55 | J54: 22.55
E55: MO sem LS => | F55: 75.71 | G55: LS => | H55: 0 | I55: MO com LS => | J55: 75.71
E56: Valor do BDI => | F56: 0 | H56: Valor com BDI => | J56: 122.06
G57: Quant. => | H57: 1 | I57: Preço Total => | J57: 122.06

Sheet Encargos Sociais
B2: DETALHAMENTO DOS ENCARGOS SOCIAIS
B4: Encargos Sociais | F4: Vigência a partir de 12/2022 - SINAPI
B5: ENCARGOS SOCIAIS SOBRE MÃO DE OBRA
B7: DISCRIMINAÇÃO | F7: COM DESONERAÇÃO | H7: SEM DESONERAÇÃO
F8: HORISTA % | G8: MENSALISTA % | H8: HORISTA % | I8: MENSALISTA %
B9: A | C9: ENCARGOS SOCIAIS BÁSICOS | F9: 0.168 | G9: 0.168 | H9: 0.368 | I9: 0.368
B10: A1 | C10: INSS | F10: 0 | G10: 0 | H10: 0.2 | I10: 0.2
B11: A2 | C11: SESI | F11: 0.015 | G11: 0.015 | H11: 0.015 | I11: 0.015
B12: A3 | C12: SENAI | F12: 0.01 | G12: 0.01 | H12: 0.01 | I12: 0.01
B13: A4 | C13: INCRA | F13: 0.002 | G13: 0.002 | H13: 0.002 | I13: 0.002
B14: A5 | C14: SEBRAE | F14: 0.006 | G14: 0.006 | H14: 0.006 | I14: 0.006
B15: A6 | C15: Saário Educação | F15: 0.025 | G15: 0.025 | H15: 0.025 | I15: 0.025
B16: A7 | C16: Seguro Contra Acidentes de Trabalho | F16: 0.03 | G16: 0.03 | H16: 0.03 | I16: 0.03
B17: A8 | C17: FGTS | F17: 0.08 | G17: 0.08 | H17: 0.08 | I17: 0.08
B18: A9 | C18: SECONCI | F18: 0 | G18: 0 | H18: 0 | I18: 0
B19: B | C19: ENCARGOS SOCIAIS QUE RECEBEM INCIDÊNCIA DE "A" | F19: 0.5044 | G19: 0.1966 | H19: 0.5044 | I19: 0.1966
B20: B1 | C20: Repouso Semanal Remunerado | F20: 0.1799 | G20: Não incide | H20: 0.1799 | I20: Não incide
B21: B2 | C21: Feriados | F21: 0.0428 | G21: Não incide | H21: 0.0428 | I21: Não incide
B22: B3 | C22: Axílio - Enfermidade | F22: 0.0088 | G22: 0.0066 | H22: 0.0088 | I22: 0.0066
B23: B4 | C23: 13º Salário | F23: 0.1117 | G23: 0.0833 | H23: 0.1117 | I23: 0.0833
B24: B5 | C24: Licença Paternidade | F24: 0.0007 | G24: 0.0005 | H24: 0.0007 | I24: 0.0005
B25: B6 | C25: Faltas Justificadas | F25: 0.0074 | G25: 0.0056 | H25: 0.0074 | I25: 0.0056
B26: B7 | C26: Dias de chuva | F26: 0.0183 | G26: Não incide | H26: 0.0183 | I26: Não incide
B27: B8 | C27: Auxílio Acidente de Trabalho | F27: 0.0011 | G27: 0.0008 | H27: 0.0011 | I27: 0.0008
B28: B9 | C28: Férias Gozadas | F28: 0.1333 | G28: 0.0995 | H28: 0.1333 | I28: 0.0995
B29: B10 | C29: Salário Maternidade | F29: 0.0004 | G29: 0.0003 | H29: 0.0004 | I29: 0.0003
B30: C | C30: ENCARGOS SOCIAIS QUE NÃO RECEBEM INCIDÊNCIA DE "A" | F30: 0.0919 | G30: 0.0687 | H30: 0.0919 | I30: 0.0687
B31: C1 | C31: Aviso Prévio Indenizado | F31: 0.0524 | G31: 0.0391 | H31: 0.0524 | I31: 0.0391
B32: C2 | C32: Aviso Prévio Trabalhado | F32: 0.0012 | G32: 0.0009 | H32: 0.0012 | I32: 0.0009
B33: C3 | C33: Férias Indenizadas | F33: 0.0084 | G33: 0.0063 | H33: 0.0084 | I33: 0.0063
B34: C4 | C34: Depósito Rescisão Sem Justa Causa | F34: 0.0255 | G34: 0.0191 | H34: 0.0255 | I34: 0.0191
B35: C5 | C35: Indenização Adicional | F35: 0.0044 | G35: 0.0033 | H35: 0.0044 | I35: 0.0033
B36: D | C36: REINCIDÊNCIAS | F36: 0.0891 | G36: 0.0363 | H36: 0.1902 | I36: 0.0758
B37: D1 | C37: Reincidência de "A" sobre "B" | F37: 0.0847 | G37: 0.033 | H37: 0.1856 | I37: 0.0723
B38: D2 | C38: Reincidência de "A" sobre Aviso Prévio Trabalhado e reincidência do FGTS sobre Aviso Prévio Indenizado | F38: 0.0044 | G38: 0.0033 | H38: 0.0046 | I38: 0.0035
C39: ENCARGOS SOCIAIS | F39: 0.8534 | G39: 0.4696 | H39: 1.1545 | I39: 0.7091

Sheet BDI
B2: QUADRO DE COMPOSIÇÃO DA TAXA DE BDI
B4: Cálculo do BDI - CONSTRUÇÃO DE RODOVIAS
B6: Item | C6: 1º quartil | D6: 3º quartil | E6: Adotado | F6: Identificação
B7: AC | C7: 3.8 | D7: 4.67 | E7: 3.8 | F7: Administração Central
B8: S e G | C8: 0.32 | D8: 0.74 | E8: 0.32 | F8: Seguro e Garantia
B9: R | C9: 0.5 | D9: 0.97 | E9: 0.5 | F9: Risco
B10: DF | C10: 1.02 | D10: 1.21 | E10: 1.02 | F10: Despesas Financeiras
B11: L | C11: 6.64 | D11: 8.69 | E11: 6.64 | F11: Lucro
B12: T | E12: =C23 -> 8.65 | F12: Tributos *
D14: TOTAL | E14: =SUM(E7:E12)/100 -> 0.2093 | F14: BDI A SER ADOTADO
B17: * TRIBUTOS | C17: %
B18: PIS | C18: 0.65
B19: COFINS | C19: 3
B20: CPRB | C20: 0
B21: ISS | C21: 5
B22: FE | C22: 0
B23: Total | C23: 8.65
B24: Declaramos que, conforme legislação tributária municipal, a base de cálculo do ISS é de | K24: 1
B25: sobre o valor da obra e a alíquota do ISS aplicável no Município é de | H25: 0.05 | J25: ← (limitado a 5,00%)
B27: FÓRMULA
B29: BDI calculado pela expressão: BDI = { [ (1+AC+S+R+G) x (1+DF) x (1+L) / (1-T)] -1}

Sheet Cronograma
B1: CRONOGRAMA FÍSICO-FINANCEIRO
D4: Mês 1 | E4: Mês 2 | F4: Mês 3 | G4: Mês 4 | H4: Mês 5 | I4: Mês 6
B5: Sondagem Mista | C5: ='Orçamento Sintético'!K12 -> 243877.1729 | D5: =D6*$C$5 -> 24387.71729 | E5: =E6*$C$5 -> 48775.43457 | F5: 48775.43457 | G5: 48775.43457 | H5: 48775.43457 | I5: 24387.71729 | J5: =SUM(D5:I5) -> 243877.1729
D6: 0.1 | E6: 0.2 | F6: 0.2 | G6: 0.2 | H6: 0.2 | I6: 0.1 | J6: 1
B7: Poço de Inspeção | C7: ='Orçamento Sintético'!K18 -> 145841.58 | D7: =D8*$C$7 -> 14584.158 | E7: =E8*$C$7 -> 29168.316 | F7: 29168.316 | G7: 29168.316 | H7: 29168.316 | I7: 14584.158 | J7: 145841.58
D8: 0.1 | E8: 0.2 | F8: 0.2 | G8: 0.2 | H8: 0.2 | I8: 0.1 | J8: 1
B9: Sondagem a Percussão SPT | C9: ='Orçamento Sintético'!K20 -> 112791.4836 | D9: =D10*$C$9 -> 11279.14836 | E9: =E10*$C$9 -> 22558.29671 | F9: 22558.29671 | G9: 22558.29671 | H9: 22558.29671 | I9: 11279.14836 | J9: 112791.4836
D10: 0.1 | E10: 0.2 | F10: 0.2 | G10: 0.2 | H10: 0.2 | I10: 0.1 | J10: 1
B12: NO MÊS | D12: =D5+D7+D9 -> 50251.02364 | E12: =E5+E7+E9 -> 100502.0473 | F12: 100502.0473 | G12: 100502.0473 | H12: 100502.0473 | I12: 50251.02364 | J12: =SUM(D12:I12) -> 502510.2364
D13: =D12/SUM($C$5:$C$10) -> 0.1 | E13: =E12/SUM($C$5:$C$10) -> 0.2 | F13: 0.2 | G13: 0.2 | H13: 0.2 | I13: 0.1 | J13: =SUM(D13:I13) -> 1
B14: ACUMULADO | D14: =D12 -> 50251.02364 | E14: =D14+E12 -> 150753.0709 | F14: 251255.1182 | G14: 351757.1655 | H14: 452259.2128 | I14: 502510.2364
D15: =D13 -> 0.1 | E15: 0.3 | F15: 0.5 | G15: 0.7 | H15: 0.9 | I15: 1
